Cogmind - Beta 15 @@@ ROGUE MODE // 2025.08.05 @ 16:52:54 Player: YA-B01 Result: Destroyed by C-35 Carver with Carbide Saw Performance ------------- Evolutions (7) 3500 Regions Visited (21) 4200 Robots Destroyed (409) 2045 Value Destroyed (19359) 19359 Prototype IDs (32) 640 Alien Tech Used (0) 0 Bonus (11186) 11186 TOTAL SCORE: 40930 Bonus ------- High Alert Combat Kills 3786 Follower Combat Kills 2590 Entered Garrisons 1400 Used RIF Installer 3500 Friendly Fire -90 Cogmind --------- Core Integrity 0/1300 Matter 290/300 Energy 82/100 System Corruption 20% Temperature Cool (0) Movement Flying (42) Location -3/Research Parts ------- > --- POWER (1) -------- (None) > --- PROPULSION (8) --- Impulse Thruster Array Impulse Thruster Array > --- UTILITY (7) ------ Relay Coupler [Grunt] (41) > --- WEAPON (5) ------- (None) > --- INVENTORY (5) ---- Micro Antimatter Reactor Improved Thunder Leg Large Storage Unit Improved Remote Datajack Welding Torch Peak State ------------ > --- POWER ------------ Neutrino Core > --- PROPULSION ------- Improved Heavy Treads Improved Heavy Treads Armored Heavy Treads > --- UTILITY ---------- Advanced Heat Sink High-capacity Storage Unit Matter Compressor Improved Medium Armor Plating Relay Coupler [NC] Relay Coupler [NC] Relay Coupler [Sentry] > --- WEAPON ----------- Mass Driver Heavy Mass Driver Hardcell Cannon Heavy Gauss Cannon > --- INVENTORY -------- Light Nuclear Core Neutrino Core Improved Treads Improved Treads Relay Coupler [NC] Relay Coupler [Grunt] Relay Coupler [Grunt] Relay Coupler [Hunter] Railgun Enhanced Gauss Cannon Heavy Shock Bomb Launcher Mini Grenade Launcher Improved Remote Datajack Power Sword [Rating: 108] Favorites ----------- Power Heavy Ion Engine Engine Heavy Ion Engine Power Core Nuclear Core Reactor Particle Reactor Propulsion Light Treads Treads Light Treads Leg Biometal Leg Wheel Wheel Hover Unit Gyrokinetic Inverter Flight Unit Improved Surge Thruster Utility High-capacity Storage Unit Device Improved Cooling System Storage High-capacity Storage Unit Hackware Relay Coupler [Grunt] Protection Light Armor Plating Weapon Heavy Flak Cannon Energy Gun Gamma Rifle Ballistic Gun Enhanced Autogun Ballistic Cannon Heavy Flak Cannon Launcher Mini Grenade Launcher Special Weapon Improved Remote Datajack Impact Weapon Great Maul Slashing Weapon Power Sword Special Melee Weapon Datajack Build | -11 -10 -10 -9 -9 -9 -8 -8 -8 -8 -8 -7 -7 -7 -7 -6 -6 -5 -5 -4 -4 -3 ------- Run | Yrd Mat Min Mat Min Exi Min Mat Gar Mat Gar Fac Gar Fac Gar Fac Gar Fac Gar Fac Gar Res Slots Evolved 14 | . . . 2 . . . 2 . . . 2 . . . 2 . 2 . 2 . 2 Power . | . . . . . . . . . . . . . . . . . . . . . . Propulsion 6 | . . . 2 . . . . . . . . . . . 1 . 1 . . . 2 Utility 5 | . . . . . . . 1 . . . 1 . . . 1 . 1 . 1 . . Weapon 3 | . . . . . . . 1 . . . 1 . . . . . . . 1 . . Parts Attached 258 | 7 6 7 23 1 1 2 29 8 15 17 2 19 4 9 4 8 2 16 23 26 29 Power 24 | 2 3 1 1 . . . 1 . 1 2 . 2 . . 1 . . 1 4 1 4 Engine 13 | 2 3 1 1 . . . . . 1 1 . 2 . . . . . . . . 2 Core 7 | . . . . . . . 1 . . 1 . . . . 1 . . 1 3 . . Reactor 4 | . . . . . . . . . . . . . . . . . . . 1 1 2 Propulsion 87 | 2 . 2 9 . . 2 13 4 11 5 . 7 . 1 . 3 . 3 5 5 15 Treads 65 | 2 . 1 8 . . 2 13 4 11 5 . 7 . 1 . 3 . 3 5 . . Leg 3 | . . . . . . . . . . . . . . . . . . . . 1 2 Wheel 4 | . . 1 1 . . . . . . . . . . . . . . . . . 2 Hover 5 | . . . . . . . . . . . . . . . . . . . . 1 4 Flight 10 | . . . . . . . . . . . . . . . . . . . . 3 7 Utility 71 | 1 3 1 6 1 . . 6 . 1 5 2 1 2 2 2 5 1 9 7 11 5 Device 8 | . . . . . . . 2 . . 1 . 1 . . . . . . 2 . 2 Storage 7 | 1 1 . 1 . . . . . . . 1 . . . 1 . . 2 . . . Processor . | . . . . . . . . . . . . . . . . . . . . . . Hackware 31 | . . . . . . . 2 . . 2 . . 2 2 . 4 1 4 4 7 3 Protection 25 | . 2 1 5 1 . . 2 . 1 2 1 . . . 1 1 . 3 1 4 . Artifact . | . . . . . . . . . . . . . . . . . . . . . . Weapon 76 | 2 . 3 7 . 1 . 9 4 2 5 . 9 2 6 1 . 1 3 7 9 5 Energy Gun 1 | . . . . . . . . . . . . . . . . . . . . . 1 Energy Cannon . | . . . . . . . . . . . . . . . . . . . . . . Ballistic Gun 23 | 2 . 1 4 . . . 7 . 1 2 . 1 . . . . . 1 1 3 . Ballistic Cannon 33 | . . 2 1 . . . 2 2 1 . . 8 1 5 1 . . 2 5 3 . Launcher 5 | . . . 1 . . . . . . 1 . . 1 . . . . . . 2 . Special Weapon 6 | . . . . . . . . . . 1 . . . 1 . . 1 . 1 . 2 Impact Weapon 1 | . . . . . . . . . . . . . . . . . . . . . 1 Slashing Weapon 5 | . . . 1 . . . . 1 . 1 . . . . . . . . . 1 1 Piercing Weapon . | . . . . . . . . . . . . . . . . . . . . . . Special Melee Weapon 2 | . . . . . 1 . . 1 . . . . . . . . . . . . . Unidentified Prototypes 3 | . . . . . . . 1 . 1 . . . . . 1 . . . . . . Parts Lost 88 | . . 2 2 . . 1 1 . 2 5 . 7 . . 1 . . 3 16 25 23 Power 6 | . . . . . . . . . . 1 . . . . 1 . . . 1 1 2 Propulsion 28 | . . 1 . . . 1 . . . . . 3 . . . . . . 5 7 11 Utility 23 | . . . 1 . . . 1 . 1 1 . 1 . . . . . 2 4 6 6 Weapon 31 | . . 1 1 . . . . . 1 3 . 3 . . . . . 1 6 11 4 Highest Loss Streak 17 | . . 1 2 . . 1 1 . 2 3 . 3 . . 1 . . 2 5 17 9 To Critical Strikes 2 | . . . . . . . . . . . . . . . . . . . 2 . . Average Backups 17 | 2 7 13 18 20 20 20 19 20 19 19 19 19 20 19 18 17 16 16 16 7 4 Power . | . . 1 . 1 1 1 1 1 . . . . . . . . . . . . . Propulsion 3 | . . . 4 3 3 3 3 4 5 6 6 5 5 4 3 2 2 2 1 . . Utility 5 | 1 4 5 5 6 6 6 6 6 6 6 7 6 6 7 7 6 6 6 7 2 . Weapon 6 | . 2 5 6 8 8 8 6 7 6 6 6 6 8 6 7 7 8 6 6 3 1 Tool/Special . | . . . . . . . . . . . . . . . . . . . . . . Unused Backups 41 | 1 . 5 11 . . . 6 2 2 5 . . . 4 . 1 . 1 . 2 1 Power 4 | . . 1 1 . . . . . 1 . . . . . . . . . . 1 . Propulsion 8 | . . . 7 . . . . . . . . . . . . 1 . . . . . Utility 17 | 1 . 2 2 . . . 2 1 . 5 . . . 1 . . . 1 . 1 1 Weapon 11 | . . 2 1 . . . 4 . 1 . . . . 3 . . . . . . . Tool/Special 1 | . . . . . . . . 1 . . . . . . . . . . . . . Average Slot Usage (%) 92 | . 95 96 99 100 100 99 99 100 99 97 96 99 100 97 88 80 75 84 77 55 46 Engine 5 | . 14 14 11 11 11 11 3 . 7 6 7 7 7 7 2 . . . . . . Core 2 | . . . . . . . 5 9 1 2 . . . . 3 6 5 5 3 . . Treads 29 | . 28 23 42 44 44 43 36 36 35 36 29 29 30 30 29 20 17 22 18 3 . Device 3 | . . . . . . . 5 9 9 7 7 7 6 . . . . . 2 2 2 Storage 9 | . 14 14 11 11 11 11 9 9 9 9 11 15 8 7 6 6 5 5 7 2 . Hackware 6 | . . . . . . . 4 9 4 6 . . 6 15 13 11 16 12 14 22 23 Protection 8 | . 10 14 11 11 11 11 7 . 4 2 7 7 7 7 11 14 11 14 5 2 . Ballistic Gun 11 | . 28 8 13 21 12 21 25 21 22 14 7 5 . . . . . 1 3 2 . Ballistic Cannon 9 | . . 19 7 . . . 1 . 3 7 7 16 24 20 9 17 7 13 12 3 . Special Weapon 1 | . . . . . . . . . . . 7 2 2 . 5 . 3 1 3 . 1 Slashing Weapon 1 | . . . 1 . . . . 4 . 2 7 4 1 5 3 1 5 2 . 1 2 Peak Build Rating 108 | 6 9 10 18 19 19 19 41 40 40 36 40 50 51 52 58 84 84 90 108 106 64 Average Rating 42 | 5 7 9 16 18 17 18 34 39 36 33 39 41 49 49 55 81 83 85 95 54 42 On Entrance 39 | . 6 9 10 18 19 17 19 40 40 36 35 39 50 50 52 57 82 83 83 100 18 Naked Turns . | . . . . . . . . . . . . . . . . . . . . . . Heaviest Build 118 | 13 31 35 58 57 57 57 83 64 82 82 78 100 97 99 96 101 85 100 118 89 21 Greatest Support 210 | 40 40 40 80 80 80 80 99 99 99 82 82 83 83 83 103 178 178 201 210 181 35 Greatest Overweight (x) 12 | . . 3 12 . . . . . . . . 1 1 1 1 1 . . 3 4 4 Average Overweight (x) . | . . . . . . . . . . . . 1 1 1 . . . . . . . Largest Inventory Capacity 20 | 8 15 15 20 20 20 20 20 20 20 20 20 20 20 20 20 20 20 20 20 20 5 Average Capacity 18 | 7 10 15 19 20 20 20 20 20 20 20 20 20 20 20 20 20 20 20 20 8 5 Most Carried 20 | 6 13 15 20 20 20 20 20 20 20 20 20 20 20 20 20 20 20 20 20 19 5 Average Carried 17 | 2 7 13 18 20 20 20 19 19 19 19 19 19 19 19 19 19 19 19 17 7 4 Final Capacity 20 | 8 15 15 20 20 20 20 20 20 20 20 20 20 20 20 20 20 20 20 20 5 5 Final Carried 20 | 5 13 15 20 20 20 20 20 20 20 20 20 20 20 20 19 20 20 20 19 5 5 Class Distribution -------------------- 21% | Botlord-Tank 19% | Scavenger-Mutant 19% | Bothacker-Tank 13% | Mutant 6% | Tank 5% | Gunner Dominant Class ---------------- Mutant | -10/Materials Mutant | -10/Mines Scavenger-Mutant | -9/Materials Scavenger-Mutant | -9/Mines Scavenger-Mutant | -9/Exiles Scavenger-Mutant | -8/Mines Tank | -8/Materials Commander-Mutant | -8/Garrison Gunner | -8/Materials Bothacker-Gunner | -8/Garrison Bothacker-Tank | -7/Factory Bothacker-Tank | -7/Garrison Bothacker-Tank | -7/Factory Bothacker-Tank | -7/Garrison Botlord-Tank | -6/Factory Botlord-Tank | -6/Garrison Botlord-Tank | -5/Factory Botlord-Tank | -5/Garrison Botlord-Tank | -4/Factory Botlord-Mutant | -4/Garrison Botlord-Mutant | -3/Research Resources | -11 -10 -10 -9 -9 -9 -8 -8 -8 -8 -8 -7 -7 -7 -7 -6 -6 -5 -5 -4 -4 -3 ----------- Run | Yrd Mat Min Mat Min Exi Min Mat Gar Mat Gar Fac Gar Fac Gar Fac Gar Fac Gar Fac Gar Res Matter Collected 15185 | 329 291 320 1003 95 . 357 1416 869 1324 1160 7 927 243 944 189 1174 92 1192 1876 812 565 Remotely . | . . . . . . . . . . . . . . . . . . . . . . Salvage Created 14623 | 189 695 452 1469 31 . 439 1920 899 1942 752 7 718 144 500 28 1225 116 498 1428 525 646 Parts 790 | 12 45 27 85 11 . 30 93 65 99 57 5 23 10 38 4 46 7 27 60 21 25 Haulers Intercepted 14 | . 1 . 4 . . . 3 . 4 . . . . . . . . . 1 . 1 Recyclers Shooed 21 | . 3 2 4 1 . . 2 . 3 . . . . . . . 2 . 3 . 1 Parts Field Recycled . | . . . . . . . . . . . . . . . . . . . . . . Retrieved Matter . | . . . . . . . . . . . . . . . . . . . . . . Parts Self-Destructed . | . . . . . . . . . . . . . . . . . . . . . . Prevented . | . . . . . . . . . . . . . . . . . . . . . . Kills | -11 -10 -10 -9 -9 -9 -8 -8 -8 -8 -8 -7 -7 -7 -7 -6 -6 -5 -5 -4 -4 -3 ------- Run | Yrd Mat Min Mat Min Exi Min Mat Gar Mat Gar Fac Gar Fac Gar Fac Gar Fac Gar Fac Gar Res Combat Hostiles Destroyed 311 | . 15 12 26 7 . 10 28 24 32 22 . 19 3 22 1 19 3 16 36 11 5 Melee 26 | . . . 1 . . . . 2 . 3 . 5 1 . . 2 . 5 2 2 3 Guns 118 | . 15 3 10 2 . 8 25 14 23 8 . 2 . . . . . 1 4 3 . Cannons 120 | . . 9 12 . . . 1 1 6 8 . 12 1 14 1 17 3 10 21 4 . AOE 45 | . . . 3 5 . 2 2 7 3 3 . . . 8 . . . . 9 1 2 Classes Destroyed 18 | 3 6 1 1 . . 1 1 . 1 1 . 1 . . . . . 1 . 1 . Worker 20 | 2 1 . 2 . . 2 2 . 4 . 1 . 1 . . . . . 4 . 1 Builder 12 | . 1 . 2 1 . . 1 . . . . . . . 1 . . . 5 . 1 Tunneler 11 | 3 . . 3 . . 1 . . . . 1 . 1 . . . 1 . . . 1 Hauler 14 | . 1 . 4 . . . 3 . 4 . . . . . . . . . 1 . 1 Recycler 21 | 1 2 2 4 . . 2 3 . 5 . . . . . . . . . . . 2 Operator 4 | . 1 . . . . . . . 3 . . . . . . . . . . . . Watcher 15 | . 2 . 4 . . . 4 . 1 1 . . 1 . . . . 1 1 . . Swarmer 79 | . 6 3 3 7 . 4 . 7 4 7 . 2 . 11 . 2 . 6 14 . 3 Cutter 2 | . . . . . . . . . . . . . . . . . . . . 2 . Grunt 118 | . 9 7 12 . . 4 18 10 20 4 . 6 2 5 . 7 2 3 6 3 . Brawler 10 | . . . 1 . . 1 . 1 1 2 . 2 . . . . . . 2 . . Duelist 8 | . . . . . . 1 1 . . . . 3 . 1 . . . 1 1 . . Protector 1 | . . . . . . . . . 1 . . . . . . . . . . . . Sentry 49 | . . 2 10 . . . 8 6 4 2 . 5 1 2 . 3 . 4 2 . . Specialist 6 | . . . . . . . . . . . . 1 . . . 4 . . 1 . . Hunter 14 | . . . . . . . 1 . 2 1 . . . . . 2 . 1 3 4 . Programmer 21 | . . . . . . . . . . 6 . . . 3 1 1 1 . 6 1 2 Behemoth 3 | . . . . . . . . . . . . . . . . . . 1 1 1 . Guerrilla 1 | . . . . . . . . . 1 . . . . . . . . . . . . Best Kill Streak 11 | 4 7 3 11 3 . 6 4 5 7 5 1 4 1 5 1 4 3 5 7 2 3 Combat Bots Only 9 | . 5 3 9 3 . 3 3 5 5 5 . 4 1 5 1 4 3 5 7 2 3 Max Kills in Single Turn 5 | 1 1 2 2 2 . 3 2 3 2 2 1 2 1 2 1 2 1 1 5 1 2 Gunslinging 1 | . . 1 . . . . 1 . . . . . . . . . . . . . . Exploded 4 | . . . 2 2 . 2 1 3 2 2 . . . 2 . . . . 4 1 2 Melee 1 | . . . 1 . . . . 1 . 1 . 1 1 . . 1 . 1 1 1 1 Uniques/NPCs Destroyed . | . . . . . . . . . . . . . . . . . . . . . . Combat | -11 -10 -10 -9 -9 -9 -8 -8 -8 -8 -8 -7 -7 -7 -7 -6 -6 -5 -5 -4 -4 -3 -------- Run | Yrd Mat Min Mat Min Exi Min Mat Gar Mat Gar Fac Gar Fac Gar Fac Gar Fac Gar Fac Gar Res Hostile Shots Fired 2259 | . 69 43 106 17 . 30 101 60 86 132 . 228 37 93 11 92 17 127 474 358 178 Missed 786 | . 22 20 20 5 . 10 35 19 26 41 . 70 20 33 3 32 10 36 200 114 70 Hits 1473 | . 47 23 86 12 . 20 66 41 60 91 . 158 17 60 8 60 7 91 274 244 108 Melee 28 | . . . . . . . . . . . . 15 . . . . . . 3 6 4 Projectile 1445 | . 47 23 86 12 . 20 66 41 60 91 . 143 17 60 8 60 7 91 271 238 104 Critical Strikes 57 | . . . 4 . . 2 6 2 1 2 . 7 . 2 . 2 . . 7 14 8 Damage Taken 23354 | . 443 285 1185 95 . 316 1088 607 890 1139 17 1736 161 848 149 912 132 1768 4313 4611 2659 Core 3638 | . 71 31 227 22 . 43 165 41 61 131 . 143 5 104 20 50 . 66 228 914 1316 Absorbed by Shields 16 | . . . . . . . . . . . . 4 . 12 . . . . . . . Reduced by Siege Mode 229 | . . . . . . . . . . . . . . . . . . . 49 180 . Redirected to Shielding 6 | . 6 . . . . . . . . . . . . . . . . . . . . Ignored by Resistances 265 | . . . . . . . 62 . 20 37 . 146 . . . . . . . . . Regen/Repaired (Parts) 1168 | . . . . . . . 178 . 285 . 130 . . . 238 . 58 279 . . . Core Remaining (%) 57 | 100 . 59 . . . 27 . . . 27 . . . 64 . 91 . 93 . . . Volleys Fired 1063 | 29 62 46 108 13 . 28 85 48 88 82 3 53 15 46 18 70 9 74 122 53 11 Largest 5 | 2 2 2 2 2 . 2 3 3 3 3 1 4 4 3 3 3 2 4 5 4 1 Hottest 218 | 40 40 63 56 50 . 50 90 105 90 102 5 176 176 132 153 153 105 166 218 158 46 Shots Fired 2237 | 42 125 77 204 22 . 54 247 128 257 151 3 162 21 82 24 118 15 127 260 107 11 Gun 1172 | 42 125 26 117 18 . 52 243 115 219 84 . 39 . . . . . 28 30 34 . Cannon 899 | . . 51 83 . . . 1 8 36 54 . 117 8 69 10 113 12 89 186 62 . Launcher 62 | . . . 4 4 . 2 3 5 2 6 . 4 6 4 . . . 6 6 9 1 Special 104 | . . . . . . . . . . 7 3 2 7 9 14 5 3 4 38 2 10 Kinetic 2071 | 42 125 77 200 18 . 52 244 123 255 138 . 156 8 69 10 113 12 117 216 96 . Thermal . | . . . . . . . . . . . . . . . . . . . . . . Explosive 28 | . . . 4 4 . 2 3 5 2 . . . . 4 . . . . 2 2 . Electromagnetic 34 | . . . . . . . . . . 6 . 4 6 . . . . 6 4 7 1 Robot Hit Streak 18 | 5 11 13 13 2 . 8 17 18 11 11 2 11 5 11 5 6 4 16 17 15 7 Robot Miss Streak 10 | 3 6 5 6 2 . 5 5 4 4 5 1 6 10 10 4 8 2 6 8 5 1 Penetration Max 1 | . . . . . . . . . . . . . . . . . . 1 1 . . Secondary Targets 14 | . 3 1 . . . 1 3 1 5 . . . . . . . . . . . . Max Gunslinging Chain 1 | . 1 1 . . . 1 1 1 1 . . . . . . . . . . . . Shots Hit Robots 1463 | 27 70 39 135 3 7 33 165 94 161 90 2 131 17 52 13 60 11 87 156 68 42 Core Hits 768 | 10 34 18 62 8 . 18 76 43 82 38 . 72 10 62 3 32 3 55 97 36 9 Critical Kills 5 | . . . . . . . . . . . . . . . . 4 . . . 1 . Critical Parts Destroyed 14 | . 1 . 1 . . . 1 . 1 . . . . . . . . 1 . 8 1 Critical Strikes 66 | . 1 1 3 . . . 1 . 3 4 . 2 . 2 1 9 1 6 14 12 6 Destroy 20 | . 1 . 1 . . . 1 . 1 . . . . . . 5 . 1 . 10 . Blast 28 | . . 1 1 . . . . . 2 . . 1 . 2 1 3 1 2 14 . . Smash 1 | . . . . . . . . . . . . . . . . . . . . . 1 Sever 17 | . . . 1 . . . . . . 4 . 1 . . . 1 . 3 . 2 5 Melee Attacks 407 | . . . 12 . 7 . . 67 3 46 7 80 1 30 . 27 2 44 8 20 53 Impact 20 | . . . . . . . . . . . . . . . . . . . . . 20 Slashing 365 | . . . 12 . . . . 55 . 46 7 80 1 30 . 27 2 44 8 20 33 Piercing . | . . . . . . . . . . . . . . . . . . . . . . Sneak Attacks 47 | . . . 2 . 7 . . 13 2 . . . 1 . . . 2 6 4 2 8 Combat Hostiles 9 | . . . . . . . . 1 . . . . . . . . . 3 3 2 . Follow-up Attacks 1 | . . . . . . . . . . . . . . . . . . . . . 1 Damage Inflicted 38888 | 270 807 611 2712 628 . 965 3195 2018 3475 2081 25 2873 518 1873 236 2544 492 3480 6319 2210 1556 Guns 12446 | 267 751 151 1285 55 . 577 2876 1228 2438 859 . 498 . . . . . 294 593 574 . Cannons 14521 | . . 428 889 . . . 6 58 458 518 . 1769 141 1296 213 1461 322 1902 4296 764 . Explosions 4333 | . . . 149 515 . 329 113 409 390 164 . . 220 577 . . . 72 729 553 113 Melee 6052 | . . . 253 . . . . 323 . 521 . 606 81 . . 1021 160 1023 302 319 1443 Ramming 1536 | 3 56 32 136 58 . 59 200 . 189 19 25 . 76 . 23 62 10 189 399 . . Kinetic 26967 | 267 751 579 2174 55 . 577 2882 1286 2896 1377 . 2267 141 1296 213 1461 322 2196 4889 1338 . Thermal 80 | . . . . . . . . . . 29 . . . . . . . . 51 . . Explosive 3082 | . . . 149 515 . 329 113 409 335 . . . . 577 . . . . 455 200 . Electromagnetic 1171 | . . . . . . . . . 55 135 . . 220 . . . . 72 223 353 113 Impact 695 | . . . . . . . . . . . . . . . . . . . . . 695 Slashing 5357 | . . . 253 . . . . 323 . 521 . 606 81 . . 1021 160 1023 302 319 748 Piercing . | . . . . . . . . . . . . . . . . . . . . . . Highest Corruption 20 | . 1 1 . . . . 3 3 4 8 . . . . 2 2 2 2 1 13 20 Average Corruption 3 | . 1 1 . . . . 3 3 3 7 . . . . 1 2 1 2 1 11 15 Corruption Purged . | . . . . . . . . . . . . . . . . . . . . . . Corruption Blocked . | . . . . . . . . . . . . . . . . . . . . . . Effects 262 | . 4 14 . . . . 38 31 33 50 . . . . 3 16 1 16 7 29 20 Message Errors 69 | . 1 1 . . . . 11 11 6 16 . . . . 1 3 . 6 2 8 3 Matter Fused 38 | . . 3 . . . . 8 5 4 9 . . . . . 2 . 2 1 3 1 Heat Flow Errors 35 | . 1 4 . . . . 6 4 6 3 . . . . . 3 . 2 1 2 3 Energy Discharges 29 | . 1 . . . . . 2 3 5 4 . . . . 1 3 . 2 2 2 4 Parts Rejected 4 | . . . . . . . 1 . . 1 . . . . . . . . . 2 . Parts Fused 5 | . . . . . . . . . . 2 . . . . . 2 . 1 . . . Data Loss (minor) 35 | . . 2 . . . . 5 3 6 8 . . . . 1 2 1 1 . 3 3 Data Loss (major) 15 | . . 2 . . . . 3 . 1 1 . . . . . 1 . 2 1 2 2 Misfires 9 | . 1 1 . . . . . 3 2 2 . . . . . . . . . . . Alerts 7 | . . 1 . . . . . 1 1 3 . . . . . . . . . . 1 Misdirections 7 | . . . . . . . . . . . . . . . . . . . . 4 3 Weapon Failures 9 | . . . . . . . 2 1 2 1 . . . . . . . . . 3 . Overload Shots . | . . . . . . . . . . . . . . . . . . . . . . Overflow Damage 1157 | . . . 71 3 . 1 . 40 11 45 . 14 43 52 81 61 38 68 208 . 421 Projectiles 362 | . . . 22 . . . . . 11 . . 4 . 46 81 46 . 47 105 . . Explosions 93 | . . . . 3 . . . 25 . 6 . . 2 6 . . . . 51 . . Melee 702 | . . . 49 . . 1 . 15 . 39 . 10 41 . . 15 38 21 52 . 421 Knockbacks 141 | . . 6 6 . . 2 3 . 3 1 . 13 9 15 2 9 2 14 35 14 7 Impact 16 | . . . . . . 2 3 . . . . . . . . . . 1 3 . 7 Kinetic 119 | . . 6 6 . . . . . 3 1 . 12 9 14 2 7 1 12 32 14 . Secondary 6 | . . . . . . . . . . . . 1 . 1 . 2 1 1 . . . Self-Inflicted Damage 283 | . . . 30 . . 32 26 17 40 . . . . 79 . . . 55 . 4 . Shots 11 | . . . 1 . . 1 1 2 1 . . . . 2 . . . 2 . 1 . Rammed 168 | 2 8 8 10 6 . 7 20 . 22 3 1 . 11 . 2 6 2 21 39 . . Targets Rammed 206 | 2 10 9 16 7 . 9 24 . 28 4 3 . 14 . 2 8 3 25 42 . . Kicked . | . . . . . . . . . . . . . . . . . . . . . . Crushed 38 | . 2 1 6 1 . 2 4 . 6 1 2 . 3 . . 2 1 4 3 . . Highest Temperature 412 | . 118 273 103 24 . 137 329 205 247 229 . 266 126 299 239 392 106 385 336 412 193 Average Temperature 82 | . 15 85 33 10 . 44 77 72 63 55 . 100 56 88 103 119 53 103 75 156 91 Received Heat Transfer 4789 | . 120 126 546 . . 171 585 288 342 342 6 525 66 222 45 228 36 243 289 588 21 Effects 17 | . . 1 . . . . 3 . . . . 1 . 1 1 1 . 2 3 4 . Shutdowns 2 | . . . . . . . . . . . . . . . . . . . . 2 . Energy Bleed 6 | . . 1 . . . . 2 . . . . . . 1 . . . 1 . 1 . Interference 5 | . . . . . . . . . . . . 1 . . 1 . . . 3 . . Matter Decay 1 | . . . . . . . . . . . . . . . . . . 1 . . . Short Circuit 2 | . . . . . . . 1 . . . . . . . . . . . . 1 . Damage (minor) 1 | . . . . . . . . . . . . . . . . 1 . . . . . Siege Activations 3 | . . . . . . . . . . . . . . . . . . . 2 1 . Total Turns 54 | . . . . . . . . . . . . . . . . . . . 28 26 . Longest Duration 27 | . . . . . . . . . . . . . . . . . . . 27 26 . Martial Activations . | . . . . . . . . . . . . . . . . . . . . . . Shielding Activations . | . . . . . . . . . . . . . . . . . . . . . . Robots Disrupted . | . . . . . . . . . . . . . . . . . . . . . . Combat Hostiles . | . . . . . . . . . . . . . . . . . . . . . . Robots Corrupted 5 | . . . . . . . . . . . . . 1 . . . . . 1 1 2 Combat Hostiles 2 | . . . . . . . . . . . . . 1 . . . . . . 1 . Parts Fried 15 | . . . 1 . . . . . . . . . 3 . . . . . 4 1 6 Impact Corruptions 14 | . . . 1 . . 1 . . . . . 1 . . . . . . 1 . 10 Robots Melted . | . . . . . . . . . . . . . . . . . . . . . . Combat Hostiles . | . . . . . . . . . . . . . . . . . . . . . . Parts Melted 4 | . . . . . . . . . . . . . . . . . . . 4 . . Heat Transferred 50 | . . . . . . . . . . . . . . . . . . . 50 . . Parts Sabotaged . | . . . . . . . . . . . . . . . . . . . . . . Parts Stolen . | . . . . . . . . . . . . . . . . . . . . . . Parts Stripped . | . . . . . . . . . . . . . . . . . . . . . . Power Chain Reactions 2 | . . . . . . . . . . 2 . . . . . . . . . . . Alert | -11 -10 -10 -9 -9 -9 -8 -8 -8 -8 -8 -7 -7 -7 -7 -6 -6 -5 -5 -4 -4 -3 ------- Run | Yrd Mat Min Mat Min Exi Min Mat Gar Mat Gar Fac Gar Fac Gar Fac Gar Fac Gar Fac Gar Res Maximum Alert Level 5 | . . . 2 1 . . 1 4 3 5 3 5 3 5 3 4 3 4 3 3 2 Low Security (%) 35 | 100 100 100 59 94 . 100 94 9 . . . . . . . . . . . . 81 Level 1 7 | . . . 32 5 . . 5 18 . . . . . . . 6 . . 27 5 12 Level 2 18 | . . . 7 . . . . 35 28 10 . 5 . 22 82 21 20 39 62 83 6 Level 3 22 | . . . . . . . . 20 71 56 100 36 100 34 17 14 79 21 9 11 . Level 4 13 | . . . . . . . . 16 . 25 . 44 . 38 . 57 . 38 . . . Level 5 1 | . . . . . . . . . . 6 . 13 . 4 . . . . . . . High Security . | . . . . . . . . . . . . . . . . . . . . . . Max Security . | . . . . . . . . . . . . . . . . . . . . . . Peak Influence 1891 | 10 181 85 424 241 . 178 307 1397 974 1635 858 1891 992 1636 858 1543 809 1592 898 794 423 Initial 992 | . . 35 9 159 . . . 89 680 590 858 505 992 518 858 377 809 468 835 468 423 Average 568 | 2 79 19 185 70 . 58 133 650 790 1034 793 1226 810 1040 649 1043 733 971 486 499 141 Influence Increases 14923 | 30 478 303 964 311 . 329 935 1308 1154 1155 54 1576 164 1178 131 1256 74 1184 1409 576 354 Destroy 0b10 Robot/C 7100 | . 300 240 520 140 . 200 560 620 680 540 . 660 80 540 60 520 45 465 675 165 90 Destroy 0b10 Robot/NC 505 | 30 40 10 95 5 . 25 65 . 95 5 15 . 15 . 5 20 4 8 44 . 24 Destroy Leader 1088 | . 66 20 196 30 . 30 154 20 170 50 2 40 22 50 10 30 8 32 116 16 26 Allied During Kill 664 | . . . . . . . . 92 37 38 4 134 2 57 24 141 . 80 45 4 6 Trap Triggered on 0b10 20 | . . . . . . . . . 20 . . . . . . . . . . . . Successful Hack 309 | . 27 . 15 . . . 40 38 13 . 26 44 14 21 12 14 3 22 20 . . Select Force Hacks 233 | . 30 . 30 . . . 60 . 60 . . . . . . . . . 53 . . Disable Machine 417 | . . . 15 30 . 15 30 . 45 . . 15 30 . 15 30 . 12 168 . 12 Anti-Garrison Action 2379 | . . . . . . . . 400 . 350 . 550 . 400 . 301 . 265 . 113 . Destroy Structure 1431 | . . 3 33 46 . 14 26 138 34 127 7 133 1 110 5 170 14 204 288 62 16 Partial Spotted 54 | . 15 . 15 . . . . . . . . . . . . . . . . . 24 Lose Combat Pursuer 723 | . . 30 45 60 . 45 . . . 45 . . . . . 30 . 96 . 216 156 Influence Decreases 14841 | 30 386 371 578 600 121 329 798 48 1643 428 967 407 1315 282 1228 252 948 261 2332 491 1026 Entered New Map 6806 | . . 57 15 251 121 . . 48 717 318 777 217 899 222 778 162 734 201 757 201 331 Time Decay 5197 | 30 386 304 543 349 . 319 638 . 546 . 190 . 416 . 270 . 214 . 620 . 372 Lost Part 813 | . . 10 20 . . 10 10 . 20 50 . 70 . . 10 . . 30 160 250 173 Lost Ally 700 | . . . . . . . . . 60 60 . 120 . 60 20 90 . 30 220 40 . Purge Threat 1325 | . . . . . . . 150 . 300 . . . . . 150 . . . 575 . 150 Squads Dispatched 49 | . 4 . 4 . . . 2 . 8 . 1 . 3 . 2 . 2 . 17 . 6 Investigation 13 | . 2 . 3 . . . 2 . 3 . . . . . . . . . 3 . . Extermination 10 | . . . . . . . . . . . 1 . 2 . 1 . . . 4 . 2 Reinforcement 15 | . 2 . 1 . . . . . 2 . . . . . 1 . . . 5 . 4 Assault 9 | . . . . . . . . . 3 . . . 1 . . . 2 . 3 . . Garrison 2 | . . . . . . . . . . . . . . . . . . . 2 . . Intercept . | . . . . . . . . . . . . . . . . . . . . . . Searches Triggered . | . . . . . . . . . . . . . . . . . . . . . . Construction Impeded 3 | . . . . . . . . . 1 . . . . . . . . . . . 2 Haulers Reinforced 1 | . . . . . . . . . . . . . . . . . . . 1 . . Active Scanning Responses . | . . . . . . . . . . . . . . . . . . . . . . Cargo Convoy Interrupts . | . . . . . . . . . . . . . . . . . . . . . . Stealth | -11 -10 -10 -9 -9 -9 -8 -8 -8 -8 -8 -7 -7 -7 -7 -6 -6 -5 -5 -4 -4 -3 --------- Run | Yrd Mat Min Mat Min Exi Min Mat Gar Mat Gar Fac Gar Fac Gar Fac Gar Fac Gar Fac Gar Res Distress Signals 13 | . . 1 2 . . . 3 . 1 1 . . . . . 1 . 3 . . 1 Communications Jammed . | . . . . . . . . . . . . . . . . . . . . . . Distress Signals . | . . . . . . . . . . . . . . . . . . . . . . Times Spotted 549 | . 24 14 36 9 . 13 38 31 48 32 1 38 9 32 4 25 5 42 61 44 43 Peak Tracking Total 15 | . 3 3 7 7 . 4 4 5 6 5 1 5 2 5 3 5 4 7 7 15 15 Tactical Retreats 30 | . . 2 2 1 . 2 . . . 2 . . . . . 2 . 5 . 8 6 Traps | -11 -10 -10 -9 -9 -9 -8 -8 -8 -8 -8 -7 -7 -7 -7 -6 -6 -5 -5 -4 -4 -3 ------- Run | Yrd Mat Min Mat Min Exi Min Mat Gar Mat Gar Fac Gar Fac Gar Fac Gar Fac Gar Fac Gar Res Traps Triggered 40 | . 1 . . . . . 1 2 . 2 . 10 . 12 . 3 . 3 2 2 2 Indirectly 5 | . . . . . . . . . . 1 . 2 . . . . . 1 1 . . Trap Hack Attempts 15 | . . . . . . . . . 15 . . . . . . . . . . . . Triggered . | . . . . . . . . . . . . . . . . . . . . . . Disarmed . | . . . . . . . . . . . . . . . . . . . . . . Reprogrammed 2 | . . . . . . . . . 2 . . . . . . . . . . . . Reused 2 | . . . . . . . . . 2 . . . . . . . . . . . . Traps Extracted . | . . . . . . . . . . . . . . . . . . . . . . Installed . | . . . . . . . . . . . . . . . . . . . . . . Triggered 2 | . . . . . . . . . 2 . . . . . . . . . . . . Objects Rigged 1 | . . . . . . . 1 . . . . . . . . . . . . . . Machines | -11 -10 -10 -9 -9 -9 -8 -8 -8 -8 -8 -7 -7 -7 -7 -6 -6 -5 -5 -4 -4 -3 ---------- Run | Yrd Mat Min Mat Min Exi Min Mat Gar Mat Gar Fac Gar Fac Gar Fac Gar Fac Gar Fac Gar Res Machines Disabled 58 | . . . 1 2 . 1 2 4 3 4 . 4 2 4 1 6 . 7 14 2 1 Max in Single Turn 5 | . . . 1 1 . 1 1 1 1 1 . 1 1 1 . 1 . 1 5 1 1 Garrison Access 1 | . . . . . . . . . . . . . . . . . . . 1 . . Garrison Relay 25 | . . . . . . . . 4 . 4 . 4 . 4 . 4 . 4 . 1 . Phase Generator 1 | . . . . . . . . . . . . . . . . . . 1 . . . Machines Repaired . | . . . . . . . . . . . . . . . . . . . . . . Machines Dismantled . | . . . . . . . . . . . . . . . . . . . . . . Machines Sabotaged . | . . . . . . . . . . . . . . . . . . . . . . Overloaded Fab Kills . | . . . . . . . . . . . . . . . . . . . . . . Hacking | -11 -10 -10 -9 -9 -9 -8 -8 -8 -8 -8 -7 -7 -7 -7 -6 -6 -5 -5 -4 -4 -3 --------- Run | Yrd Mat Min Mat Min Exi Min Mat Gar Mat Gar Fac Gar Fac Gar Fac Gar Fac Gar Fac Gar Res Machines Accessed 93 | . 6 . 11 2 1 . 13 4 13 2 2 3 5 2 4 2 3 2 11 . 7 Terminals 59 | . 5 . 7 2 . . 8 4 7 2 . 3 4 2 2 2 . 2 5 . 4 Fabricators 3 | . . . . . . . . . . . . . . . . . . . 2 . 1 Repair Stations 8 | . . . 1 . . . 2 . 2 . 1 . . . 1 . . . 1 . . Recycling Units 10 | . 1 . 1 . . . 1 . 2 . . . . . . . 2 . 1 . 2 Scanalyzers 5 | . . . 2 . . . 1 . 1 . . . . . . . . . 1 . . Garrison Access 7 | . . . . . . . 1 . 1 . 1 . 1 . 1 . 1 . 1 . . Total Hacks 251 | . 16 . 32 4 23 . 53 8 37 4 3 4 8 2 8 3 8 3 20 . 15 Successful 164 | . 8 . 23 1 23 . 39 5 26 1 3 3 3 2 6 1 6 2 9 . 3 Failed 85 | . 7 . 9 3 . . 13 3 11 3 . 1 5 . 2 2 2 1 11 . 12 Catastrophic 16 | . 2 . 1 . . . . 1 . . . . 3 . 1 1 . . 3 . 4 Database Lockouts 2 | . 1 . . . . . 1 . . . . . . . . . . . . . . Manual 92 | . 12 . 11 1 . . 31 1 16 . . . 5 . 4 . 3 . 3 . 5 Terminals 158 | . 14 . 23 4 . . 36 8 23 4 . 4 7 2 4 3 . 3 13 . 10 Fabricators 4 | . . . . . . . . . . . . . . . . . . . 2 . 2 Repair Stations 16 | . . . 1 . . . 6 . 4 . 2 . . . 2 . . . 1 . . Recycling Units 21 | . 2 . 2 . . . 1 . 6 . . . . . . . 6 . 1 . 3 Scanalyzers 19 | . . . 6 . . . 8 . 3 . . . . . . . . . 2 . . Garrison Access 10 | . . . . . . . 2 . 1 . 1 . 1 . 2 . 2 . 1 . . Terminal Hacks 74 | . 4 . 8 . 23 . 11 4 8 1 . 3 2 2 . 1 . 2 3 . 2 Record 23 | . . . . . 23 . . . . . . . . . . . . . . . . Part Schematic 2 | . 1 . . . . . 1 . . . . . . . . . . . . . . Robot Analysis 1 | . . . . . . . . . 1 . . . . . . . . . . . . Prototype ID Bank 12 | . 1 . 3 . . . 2 . 4 . . . 1 . . . . . . . 1 Open Door 2 | . . . . . . . . 1 . . . . . 1 . . . . . . . Branch Access Points 1 | . . . 1 . . . . . . . . . . . . . . . . . . Emergency Access Points 7 | . . . 1 . . . . 1 . 1 . 1 . 1 . 1 . 1 . . . Garrison Index 1 | . . . . . . . 1 . . . . . . . . . . . . . . Alert Level 4 | . . . 1 . . . 3 . . . . . . . . . . . . . . Unreport Threat 6 | . . . . . . . 1 . 2 . . . . . . . . . 2 . 1 Locate Traps 8 | . 1 . 2 . . . 2 . 1 . . . 1 . . . . . 1 . . Recall Investigation 1 | . . . . . . . 1 . . . . . . . . . . . . . . Registered Components 1 | . 1 . . . . . . . . . . . . . . . . . . . . Garrison Registry 1 | . . . . . . . . 1 . . . . . . . . . . . . . Patrol Navigation 2 | . . . . . . . . . . . . 1 . . . . . 1 . . . Security Stations 2 | . . . . . . . . 1 . . . 1 . . . . . . . . . Fabricator Hacks . | . . . . . . . . . . . . . . . . . . . . . . Repair Station Hacks 12 | . . . . . . . 4 . 4 . 2 . . . 2 . . . . . . Scan Component 6 | . . . . . . . 2 . 2 . 1 . . . 1 . . . . . . Repair 6 | . . . . . . . 2 . 2 . 1 . . . 1 . . . . . . Recycling Unit Hacks 7 | . . . 1 . . . . . 2 . . . . . . . 2 . 1 . 1 Retrieve Matter 1 | . . . . . . . . . . . . . . . . . . . . . 1 Retrieve Components 6 | . . . 1 . . . . . 2 . . . . . . . 2 . 1 . . Scanalyzer 16 | . . . 6 . . . 7 . 1 . . . . . . . . . 2 . . Insert Component 8 | . . . 3 . . . 3 . 1 . . . . . . . . . 1 . . Analyze 8 | . . . 3 . . . 4 . . . . . . . . . . . 1 . . Garrison Access Hacks 9 | . . . . . . . 1 . 1 . 1 . 1 . 2 . 2 . 1 . . Unlock Access 7 | . . . . . . . 1 . 1 . 1 . 1 . 1 . 1 . 1 . . Coupler Status 2 | . . . . . . . . . . . . . . . 1 . 1 . . . . Unauthorized Hacks 45 | . 3 . 8 1 . . 16 1 10 . . . . . 2 . 2 . 2 . . Terminals 35 | . 2 . 7 1 . . 14 1 8 . . . . . 2 . . . . . . Track 1 | . . . . . . . 1 . . . . . . . . . . . . . . Assimilate 1 | . . . . . . . 1 . . . . . . . . . . . . . . Botnet 10 | . . . 1 . . . 5 . 4 . . . . . . . . . . . . Detonate 1 | . . . . . . . 1 . . . . . . . . . . . . . . Operators 2 | . 1 . . . . . 1 . . . . . . . . . . . . . . Skim 18 | . 1 . 5 1 . . 5 . 4 . . . . . 2 . . . . . . Sabotage 1 | . . . 1 . . . . . . . . . . . . . . . . . . Override 1 | . . . . . . . . 1 . . . . . . . . . . . . . Fabricators 2 | . . . . . . . . . . . . . . . . . . . 2 . . Overload 1 | . . . . . . . . . . . . . . . . . . . 1 . . Download 1 | . . . . . . . . . . . . . . . . . . . 1 . . Repair Stations . | . . . . . . . . . . . . . . . . . . . . . . Recycling Units 7 | . 1 . 1 . . . 1 . 2 . . . . . . . 2 . . . . Recyclers 1 | . . . . . . . . . . . . . . . . . 1 . . . . Mask 1 | . . . . . . . . . . . . . . . . . 1 . . . . Tunnel 5 | . 1 . 1 . . . 1 . 2 . . . . . . . . . . . . Scanalyzers 1 | . . . . . . . 1 . . . . . . . . . . . . . . Extract 1 | . . . . . . . 1 . . . . . . . . . . . . . . Garrison Access . | . . . . . . . . . . . . . . . . . . . . . . Data Cores Recovered 3 | . 1 . . . . . . . 2 . . . . . . . . . . . . Used 1 | . . . . . . . . . 1 . . . . . . . . . . . . Hacking Detections 73 | . 5 . 8 2 . . 12 3 10 2 1 2 4 . 4 1 2 2 8 . 7 Full Trace Events 9 | . 2 . 1 . . . . 1 2 1 . . . . . 1 . . 1 . . Feedback Events . | . . . . . . . . . . . . . . . . . . . . . . Feedback Blocked . | . . . . . . . . . . . . . . . . . . . . . . Robot Schematics Acquired . | . . . . . . . . . . . . . . . . . . . . . . Robots Built . | . . . . . . . . . . . . . . . . . . . . . . Authchips . | . . . . . . . . . . . . . . . . . . . . . . Time . | . . . . . . . . . . . . . . . . . . . . . . Total Robot Build Rating . | . . . . . . . . . . . . . . . . . . . . . . Part Schematics Acquired 11 | . 1 . 3 . . . 5 . . . . . . . . . . . 2 . . Parts Built . | . . . . . . . . . . . . . . . . . . . . . . Authchips . | . . . . . . . . . . . . . . . . . . . . . . Time . | . . . . . . . . . . . . . . . . . . . . . . Total Part Build Rating . | . . . . . . . . . . . . . . . . . . . . . . Parts Repaired 6 | . . . . . . . 2 . 2 . 1 . . . 1 . . . . . . Time 256 | . . . . . . . 108 . 104 . 19 . . . 25 . . . . . . Parts Recycled . | . . . . . . . . . . . . . . . . . . . . . . Recycled Matter . | . . . . . . . . . . . . . . . . . . . . . . Retrieved Matter . | . . . . . . . . . . . . . . . . . . . . . . Retrieved Components 20 | . . . 10 . . . . . 6 . . . . . . . 2 . 2 . . Parts Scanalyzed 7 | . . . 3 . . . 2 . 1 . . . . . . . . . 1 . . Part Schematics Acquired 6 | . . . 3 . . . 2 . . . . . . . . . . . 1 . . Parts Damaged . | . . . . . . . . . . . . . . . . . . . . . . Bothacking | -11 -10 -10 -9 -9 -9 -8 -8 -8 -8 -8 -7 -7 -7 -7 -6 -6 -5 -5 -4 -4 -3 ------------ Run | Yrd Mat Min Mat Min Exi Min Mat Gar Mat Gar Fac Gar Fac Gar Fac Gar Fac Gar Fac Gar Res Used RIF Installer 7 | . . . . . . . . 1 . 1 . 2 . 1 . 1 . 1 . . . Command Fork 1 | . . . . . . . . . . . . 1 . . . . . . . . . Threat Obfuscator 1 | . . . . . . . . . . . . . . . . 1 . . . . . Watcher Feeds 1 | . . . . . . . . . . . . 1 . . . . . . . . . Patrol Navigation 1 | . . . . . . . . . . . . . . . . . . 1 . . . Program Shield 1 | . . . . . . . . . . 1 . . . . . . . . . . . Autooverride 1 | . . . . . . . . . . . . . . 1 . . . . . . . Robots Hacked 63 | . . . . . 6 . . . 3 4 . . 4 2 4 4 1 4 23 1 7 Non-combat 23 | . . . . . 3 . . . 3 . . . 2 . 2 . 1 . 8 . 4 Combat 40 | . . . . . 3 . . . . 4 . . 2 2 2 4 . 4 15 1 3 Autooverrided 10 | . . . . . . . . . . . . . . . . 1 . 1 6 . 2 Robot Hacks Applied 68 | . . . . . 6 . . . 3 4 . . 5 2 8 4 3 4 20 1 8 parse_system 11 | . . . . . 6 . . . 3 . . . . . 1 . . 1 . . . no_distress 1 | . . . . . . . . . . . . . . . . . . . . . 1 generate_echo 2 | . . . . . . . . . . . . . . . 1 . 1 . . . . map_walls 6 | . . . . . . . . . . . . . . . 1 . . . 4 . 1 map_earth 1 | . . . . . . . . . . . . . . . . . . . 1 . . drop_inventory 3 | . . . . . . . . . . . . . 2 . . . . . . . 1 ignore_parts 1 | . . . . . . . . . . . . . . . . . . . . . 1 find_station 1 | . . . . . . . . . . . . . . . . . 1 . . . . purge_threat 3 | . . . . . . . . . . . . . . . 1 . . . 2 . . locate_traps 2 | . . . . . . . . . . . . . . . 1 . . . . . 1 block_reporting 1 | . . . . . . . . . . . . . . . . . . . . . 1 map_route 1 | . . . . . . . . . . . . . . . . . . . 1 . . find_garrison 2 | . . . . . . . . . . . . . . . 1 . . . 1 . . broadcast_data 1 | . . . . . . . . . . . . . 1 . . . . . . . . spike_heat 2 | . . . . . . . . . . . . . . . . 1 . . 1 . . overload_power 1 | . . . . . . . . . . . . . . . . 1 . . . . . amplify_resonance 3 | . . . . . . . . . . . . . . . . . . . 2 . 1 disable_weapons 1 | . . . . . . . . . . . . . 1 . . . . . . . . reboot_system 1 | . . . . . . . . . . . . . . . . . . . 1 . . overwrite_iff 10 | . . . . . . . . . . 1 . . . . 1 1 . 2 4 1 . formatsys_low 3 | . . . . . . . . . . . . . . . 1 . 1 . . . 1 formatsys_high 10 | . . . . . . . . . . 3 . . 1 2 . 1 . 1 2 . . formatsys_deep 1 | . . . . . . . . . . . . . . . . . . . 1 . . Relay Couplers Released 103 | . . . . . . . . 15 . 15 . 16 . 20 . 18 . 14 . 5 . Machine Destruction 100 | . . . . . . . . 15 . 15 . 16 . 17 . 18 . 14 . 5 . Programmers 3 | . . . . . . . . . . . . . . 3 . . . . . . . Attached 28 | . . . . . . . . . . 2 . . 2 2 . 4 1 4 4 7 2 Fabnet Peak Effective % . | . . . . . . . . . . . . . . . . . . . . . . Robots Rewired 13 | . . . . . . . . 4 . . 2 2 . 3 . . . . 2 . . Allies Hacked 1 | . . . . . . . . . . . . . . . . 1 . . . . . Hacks Repelled . | . . . . . . . . . . . . . . . . . . . . . . Allies | -11 -10 -10 -9 -9 -9 -8 -8 -8 -8 -8 -7 -7 -7 -7 -6 -6 -5 -5 -4 -4 -3 -------- Run | Yrd Mat Min Mat Min Exi Min Mat Gar Mat Gar Fac Gar Fac Gar Fac Gar Fac Gar Fac Gar Res Total Allies 55 | . . . . . . . . 4 . 6 2 2 1 7 2 3 1 6 17 1 3 Largest Group 6 | . . . . . . . . 4 4 5 5 5 1 6 6 6 1 3 3 2 2 Highest-Rated Group 224 | . . . . . . . . 119 119 87 99 99 32 146 130 138 14 224 141 112 94 Highest-Rated Ally 95 | . . . . . . . . 39 39 20 32 32 32 62 39 47 14 95 80 56 47 Total Orders 29 | . . . . . . . . 2 1 . . 5 . 4 . 4 4 7 2 . . STAY 14 | . . . . . . . . 1 1 . . 4 . 2 . 2 . 3 1 . . FOLLOW 8 | . . . . . . . . 1 . . . 1 . 2 . 2 . 1 1 . . AID 7 | . . . . . . . . . . . . . . . . . 4 3 . . . Ally Attacks 381 | . . . . . . . . 35 27 21 6 82 2 26 9 46 . 58 57 7 5 Total Damage 9076 | . . . . . . . . 532 406 352 105 1835 104 411 137 1178 . 2004 1672 228 112 Kills 76 | . . . . . . . . 7 4 5 1 15 1 6 2 9 . 16 9 . 1 Allies Corrupted 1 | . . . . . . . . . . . . . . 1 . . . . . . . Allies Melted 1 | . . . . . . . . . . . . . . . . . . . 1 . . Intel | -11 -10 -10 -9 -9 -9 -8 -8 -8 -8 -8 -7 -7 -7 -7 -6 -6 -5 -5 -4 -4 -3 ------- Run | Yrd Mat Min Mat Min Exi Min Mat Gar Mat Gar Fac Gar Fac Gar Fac Gar Fac Gar Fac Gar Res Active Infowar (turns) 405 | . . . . . . . . . . . . . . . . . . . . . 405 Structural 87 | . . . . . . . . . . . . . . . . . . . . . 87 Seismic 318 | . . . . . . . . . . . . . . . . . . . . . 318 Robot Analysis Total 1 | . . . . . . . . . 1 . . . . . . . . . . . . Derelict Logs Recovered 2 | . . . . 2 . . . . . . . . . . . . . . . . . Drone Launches . | . . . . . . . . . . . . . . . . . . . . . . Drone Recoveries . | . . . . . . . . . . . . . . . . . . . . . . Exploration | -11 -10 -10 -9 -9 -9 -8 -8 -8 -8 -8 -7 -7 -7 -7 -6 -6 -5 -5 -4 -4 -3 ------------- Run | Yrd Mat Min Mat Min Exi Min Mat Gar Mat Gar Fac Gar Fac Gar Fac Gar Fac Gar Fac Gar Res Turns Passed 29262 | 170 1158 1527 2507 1613 481 1045 2478 1479 1564 1662 398 2288 1017 1879 583 1469 442 1765 2098 678 961 Spaces Moved 13855 | 57 579 594 1196 664 294 560 1190 701 726 777 220 774 354 652 258 705 224 791 912 463 1164 Core 325 | 4 . . 1 . . . . . . . . . . . . . . . . 62 258 Treads 12014 | 53 579 521 1026 664 294 560 1190 701 726 777 220 774 354 652 258 705 224 791 912 33 . Legs 3 | . . . . . . . . . . . . . . . . . . . . 2 1 Wheels 401 | . . 73 169 . . . . . . . . . . . . . . . . . 159 Hover 346 | . . . . . . . . . . . . . . . . . . . . 56 290 Flight 766 | . . . . . . . . . . . . . . . . . . . . 310 456 Fastest Speed 21 | 50 160 125 125 160 160 160 160 160 156 156 156 235 245 245 166 160 160 160 160 21 34 Average Speed 159 | 152 160 174 155 160 160 160 160 160 156 156 156 238 245 245 194 160 160 160 167 65 57 Slowest Speed 650 | 160 160 240 650 160 160 160 160 160 160 156 156 245 245 245 245 243 160 160 400 300 250 Overloaded Moves 16 | . . . . . . . . . . . . . . . . . . . . 16 . Propulsion Burnouts . | . . . . . . . . . . . . . . . . . . . . . . Robots Hopped 17 | . . . . . . . . . . . . . . . . . . . . 3 14 Potential Cave-ins 4 | . . 2 . . . . . . . . . . . . . . . . 2 . . Cave-ins Triggered . | . . . . . . . . . . . . . . . . . . . . . . Exploration Rate (%) 61 | 4 83 76 93 97 72 82 86 96 67 87 8 91 21 83 10 92 6 87 36 36 31 Regions Visited 21 Branch Regions 4 Pre-discovered Areas 12 | . 1 . 2 1 1 . 5 . 2 . . . . . . . . . . . . Known Exits Taken 8 | . . . 1 . . . 1 . 1 . 1 . 1 . 1 . 1 . 1 . . Unknown Exits Taken 6 | 1 1 1 . 1 1 1 . . . . . . . . . . . . . . . Scrap Searched 4 | . . 2 . 1 . 1 . . . . . . . . . . . . . . . Spaces Dug 177 | . . 3 6 12 . . 13 18 . 7 7 38 . 29 . 2 . 19 9 6 8 Terrain Destroyed 662 | . . 10 28 61 . 16 25 39 30 12 7 38 . 43 5 20 6 93 189 32 8 Melee 124 | . . . 6 . . . . 18 . 7 7 38 . 13 . . . 17 4 6 8 Projectile 168 | . . 10 1 . . . . . 14 . . . . 5 5 20 6 11 81 15 . AOE 370 | . . . 21 61 . 16 25 21 16 5 . . . 25 . . . 65 104 11 . Terrain Rammed . | . . . . . . . . . . . . . . . . . . . . . . Walls Destroyed . | . . . . . . . . . . . . . . . . . . . . . . Machines Disabled . | . . . . . . . . . . . . . . . . . . . . . . Actions | -11 -10 -10 -9 -9 -9 -8 -8 -8 -8 -8 -7 -7 -7 -7 -6 -6 -5 -5 -4 -4 -3 --------- Run | Yrd Mat Min Mat Min Exi Min Mat Gar Mat Gar Fac Gar Fac Gar Fac Gar Fac Gar Fac Gar Res Total 18591 | 100 694 1008 1633 1193 301 658 1611 915 1030 1060 260 987 464 820 318 884 285 1092 1236 714 1328 Wait 2189 | . 23 333 220 499 . 55 218 63 128 86 21 18 70 27 25 37 40 106 90 67 63 Move 13809 | 56 578 593 1195 663 293 559 1190 700 726 776 220 773 354 651 258 704 224 790 912 456 1138 Hop 15 | . . . . . . . . . . . . . . . . . . . . 3 12 Pick Up 144 | 5 9 9 26 3 . . 18 2 3 11 2 7 1 6 1 6 1 5 19 5 5 Fast Attach 107 | 6 2 2 1 . . 1 14 . 4 6 1 3 . 2 3 4 1 9 4 21 23 Attach 82 | . . 2 4 . . . 3 . 3 5 2 6 1 . 3 1 1 4 17 20 10 Detach 36 | . . 2 . . . . 1 . 1 2 . . . . 1 2 1 4 1 14 7 Swap 246 | 1 4 3 22 5 1 5 21 29 18 25 1 24 6 18 5 13 2 20 15 4 4 Drop 194 | 1 6 9 29 3 . 1 37 6 13 17 . 11 1 13 2 11 1 11 4 15 3 Fire 1063 | 29 62 46 108 13 . 28 85 48 88 82 3 53 15 46 18 70 9 74 122 53 11 Melee 406 | . . . 12 . 7 . . 67 3 46 7 80 1 30 . 27 2 44 8 20 52 Ram . | . . . . . . . . . . . . . . . . . . . . . . Kick . | . . . . . . . . . . . . . . . . . . . . . . Crush 206 | 2 10 9 16 7 . 9 24 . 28 4 3 . 14 . 2 8 3 25 42 . . Escape Stasis 71 | . . . . . . . . . . . . 12 . 23 . . . . . 36 . Rewire 8 | . . . . . . . . . . . . . 1 4 . 1 . . 2 . . Trap 15 | . . . . . . . . . 15 . . . . . . . . . . . . Miscellaneous . | . . . . . . . . . . . . . . . . . . . . . . Route ------- -11/Scrapyard -10/Materials (discovered 3 exits: *Mat x2 / [*Min]) -10/Mines (discovered 3 exits: *Mat x2 / [*Sub]) -9/Materials (discovered 5 exits: *Mat x3 / *Min / *Sto) -9/Mines (discovered 4 exits: *Mat x2 / *Exi / [*Zio]) -9/Exiles -8/Mines (discovered 2 exits: *Mat x2) -8/Materials (discovered 4 exits: *Fac x3 / Gar) -8/Garrison (discovered 4 exits: *Fac x3 / *Mat) -8/Materials (discovered 4 exits: *Fac x3 / Gar) -8/Garrison (discovered 3 exits: *Fac x3) -7/Factory -7/Garrison (discovered 3 exits: *Fac x3) -7/Factory (discovered 3 exits: *Fac / [*Low] / Gar) -7/Garrison (discovered 3 exits: *Fac x3) -6/Factory -6/Garrison (discovered 3 exits: *Fac x3) -5/Factory -5/Garrison (discovered 3 exits: *Fac x3) -4/Factory (discovered 3 exits: *Res / [*Upp] / Gar) -4/Garrison -3/Research History --------- Turn | Location | Event 11 | -11/Scrapyard | Discovered new exit (range 14) 171 | -11/Scrapyard | Entered Materials 308 | -10/Materials | Build established: Mutant 534 | -10/Materials | Discovered new exit (range 14) 647 | -10/Materials | Discovered new exit (range 13) 651 | -10/Materials | Central database locked down 930 | -10/Materials | Discovered new exit (range 5) 1329 | -10/Materials | Entered Mines 1653 | -10/Mines | Discovered new exit (range 9) 1831 | -10/Mines | Excavation squad dispatched 1831 | -10/Mines | A large section of the Mines collapsed 2081 | -10/Mines | Excavation squad dispatched 2316 | -10/Mines | Discovered new exit (range 5) 2432 | -10/Mines | Discovered new exit (range 6) 2856 | -10/Mines | Entered Materials 2856 | -9/Materials | Evolved 2 slots: Propulsion x2 2878 | -9/Materials | Discovered new exit (range 15) 3151 | -9/Materials | Build established: Scavenger-Mutant 3192 | -9/Materials | Discovered new exit (range 7) 3311 | -9/Materials | Identified exit to Mines 3311 | -9/Materials | Identified exit to Storage 3671 | -9/Materials | Discovered new exit (range 7) 3678 | -9/Materials | Destroyed 9 combat bots 4024 | -9/Materials | Discovered new exit (range 4) 4706 | -9/Materials | Discovered new exit (range 15) 4787 | -9/Materials | Core integrity fell below 50% 4937 | -9/Materials | Loaded intel: 2 recycling unit locations 4969 | -9/Materials | Learned Recycling recycling unit intel 5005 | -9/Materials | Learned Storage emergency access door positions 5006 | -9/Materials | Learned location of 3 exits from Materials 5008 | -9/Materials | Learned location of Storage (-9) 5015 | -9/Materials | Learned location of 3 exits from Materials 5363 | -9/Materials | Entered Mines 5386 | -9/Mines | Discovered new exit (range 10) 5395 | -9/Mines | Assembled infested the area 5976 | -9/Mines | Learned Materials terminal intel 6068 | -9/Mines | Discovered new exit (range 16) 6277 | -9/Mines | Discovered new exit (range 5) 6326 | -9/Mines | A Derelict revealed a hidden shortcut to a safe place 6588 | -9/Mines | A weapon hastily lodged in a ceiling crevice suddenly fell to the ground 6775 | -9/Mines | Received a Rocket Launcher from a helpful Derelict 6976 | -9/Mines | Entered Exiles 7015 | -9/Exiles | Met 8R-AWN 7045 | -9/Exiles | Met EX-HEX 7109 | -9/Exiles | Met EX-BIN 7163 | -9/Exiles | Met EX-DEC 7270 | -9/Exiles | Visited The Gauntlet 7385 | -9/Exiles | Learned location of Zion (-7) 7443 | -9/Exiles | Discovered new exit (range 10) 7457 | -9/Exiles | Entered Mines 7689 | -8/Mines | Discovered new exit (range 3) 8116 | -8/Mines | Discovered new exit (range 5) 8502 | -8/Mines | Entered Materials 8502 | -8/Materials | Evolved 2 slots: Utility x1, Weapon x1 8503 | -8/Materials | Identified exit to Factory 8504 | -8/Materials | Loaded intel: 12 terminal locations 8818 | -8/Materials | Repaired Minigun 8981 | -8/Materials | Central database locked down 9118 | -8/Materials | Build established: Scavenger-Tank 9695 | -8/Materials | Build established: Tank 10258 | -8/Materials | Learned location of 1 exit from Extension 10261 | -8/Materials | Repaired Prc. Assault Rifle 10320 | -8/Materials | Learned location of Extension (-5) 10336 | -8/Materials | Learned Factory trap positions 10342 | -8/Materials | Learned 2 Lower Caves zone layouts 10348 | -8/Materials | Learned Storage terminal intel 10362 | -8/Materials | Learned location of Lower Caves (-7) 10385 | -8/Materials | Learned Factory emergency access door positions 10826 | -8/Materials | Build established: Gunner 10980 | -8/Materials | Identified exit to Garrison 10980 | -8/Materials | Entered Garrison 11168 | -8/Garrison | Triggered checkpoint 11220 | -8/Garrison | Triggered checkpoint 11420 | -8/Garrison | Triggered checkpoint 11444 | -8/Garrison | Garrison Relay disabled 11628 | -8/Garrison | Triggered checkpoint 11893 | -8/Garrison | Discovered exit to Factory (range 16) 11893 | -8/Garrison | Discovered exit to Factory (range 44) 11893 | -8/Garrison | Discovered exit to Factory (range 34) 11893 | -8/Garrison | Discovered new exit (range 61) 11900 | -8/Garrison | Triggered checkpoint 11918 | -8/Garrison | Garrison Relay disabled 12098 | -8/Garrison | Garrison Relay disabled 12138 | -8/Garrison | Learned Factory security intel 12152 | -8/Garrison | Triggered checkpoint 12209 | -8/Garrison | Installed Relay Interface Framework 12220 | -8/Garrison | Garrison Relay disabled 12374 | -8/Garrison | Triggered checkpoint 12410 | -8/Garrison | Triggered checkpoint 12459 | -8/Garrison | Entered Materials 12459 | -8/Materials | Accompanied by 4 allies 12659 | -8/Materials | Repaired Med. Treads 12859 | -8/Materials | First assault squad dispatched 12943 | -8/Materials | Repaired Enh. Autogun 13993 | -8/Materials | Build established: Tank 14023 | -8/Materials | Identified exit to Garrison 14023 | -8/Materials | Entered Garrison 14040 | -8/Garrison | Expanded RIF knowledge: Program Shield 14143 | -8/Garrison | Triggered checkpoint 14146 | -8/Garrison | Core integrity fell below 50% 14461 | -8/Garrison | Triggered checkpoint 14502 | -8/Garrison | Triggered checkpoint 14652 | -8/Garrison | Discovered exit to Factory (range 15) 14720 | -8/Garrison | Triggered checkpoint 14745 | -8/Garrison | Garrison Relay disabled 14937 | -8/Garrison | Spotted B-75 Beast 14937 | -8/Garrison | Spotted B-75 Beast 14956 | -8/Garrison | Build established: Bothacker-Gunner 14980 | -8/Garrison | Discovered exit to Factory (range 15) 15007 | -8/Garrison | Triggered checkpoint 15099 | -8/Garrison | Triggered checkpoint 15209 | -8/Garrison | Lost 3 parts (1u2w) 15248 | -8/Garrison | Garrison Relay disabled 15302 | -8/Garrison | Build established: Bothacker-Mutant 15369 | -8/Garrison | Triggered checkpoint 15503 | -8/Garrison | Rescued a captive Derelict 15503 | -8/Garrison | Rescued a captive Derelict 15544 | -8/Garrison | Garrison Relay disabled 15651 | -8/Garrison | Discovered exit to Factory (range 12) 15685 | -8/Garrison | Entered Factory 15685 | -7/Factory | Accompanied by 3 allies 15685 | -7/Factory | Evolved 2 slots: Utility x1, Weapon x1 15686 | -7/Factory | Loaded intel: 97 trap records 15774 | -7/Factory | Repaired Adv. Treads 15991 | -7/Factory | Build established: Bothacker-Tank 16080 | -7/Factory | Identified exit to Garrison 16083 | -7/Factory | Entered Garrison 16083 | -7/Garrison | Accompanied by 5 allies 16135 | -7/Garrison | Triggered checkpoint 16190 | -7/Garrison | Garrison Relay disabled 16379 | -7/Garrison | Triggered checkpoint 16383 | -7/Garrison | Triggered checkpoint 16515 | -7/Garrison | Triggered checkpoint 16708 | -7/Garrison | Garrison Relay disabled 16730 | -7/Garrison | Learned Factory security intel 16739 | -7/Garrison | Discovered new exit (range 5) 16903 | -7/Garrison | Triggered checkpoint 16935 | -7/Garrison | Triggered checkpoint 17147 | -7/Garrison | Triggered checkpoint 17202 | -7/Garrison | Lost 3 allies 17217 | -7/Garrison | Expanded RIF knowledge: Command Fork 17261 | -7/Garrison | Discovered new exit (range 8) 17391 | -7/Garrison | Expanded RIF knowledge: Watcher Feeds 17466 | -7/Garrison | Garrison Relay disabled 17669 | -7/Garrison | Triggered checkpoint 17816 | -7/Garrison | Lost 3 parts (1n1u1w) 17968 | -7/Garrison | Discovered new exit (range 11) 18049 | -7/Garrison | Triggered checkpoint 18135 | -7/Garrison | Garrison Relay disabled 18371 | -7/Garrison | Entered Factory 18697 | -7/Factory | Discovered new exit (range 9) 18771 | -7/Factory | First assault squad dispatched 19068 | -7/Factory | Discovered new exit (range 15) 19385 | -7/Factory | Identified exit to Garrison 19388 | -7/Factory | Entered Garrison 19388 | -7/Garrison | Accompanied by 1 ally 19436 | -7/Garrison | Triggered checkpoint 19596 | -7/Garrison | Triggered checkpoint 19636 | -7/Garrison | Garrison Relay disabled 19830 | -7/Garrison | Triggered checkpoint 19852 | -7/Garrison | Triggered checkpoint 20044 | -7/Garrison | Discovered new exit (range 10) 20192 | -7/Garrison | Found embedded Infiltrators 20222 | -7/Garrison | Garrison Relay disabled 20379 | -7/Garrison | Triggered checkpoint 20538 | -7/Garrison | Garrison Relay disabled 20680 | -7/Garrison | Discovered new exit (range 11) 20866 | -7/Garrison | Triggered checkpoint 21066 | -7/Garrison | Triggered checkpoint 21115 | -7/Garrison | Garrison Relay disabled 21184 | -7/Garrison | Discovered new exit (range 14) 21226 | -7/Garrison | Expanded RIF knowledge: Autooverride 21267 | -7/Garrison | Entered Factory 21267 | -6/Factory | Accompanied by 4 allies 21267 | -6/Factory | Evolved 2 slots: Propulsion x1, Utility x1 21552 | -6/Factory | Build established: Botlord-Tank 21754 | -6/Factory | Repaired Lyr. Medium Armor Plating 21850 | -6/Factory | Identified exit to Garrison 21850 | -6/Factory | Entered Garrison 21850 | -6/Garrison | Accompanied by 5 allies 22066 | -6/Garrison | Garrison Relay disabled 22114 | -6/Garrison | Triggered checkpoint 22265 | -6/Garrison | Triggered checkpoint 22280 | -6/Garrison | Triggered checkpoint 22291 | -6/Garrison | Triggered checkpoint 22359 | -6/Garrison | Triggered checkpoint 22434 | -6/Garrison | Triggered checkpoint 22477 | -6/Garrison | Garrison Relay disabled 22590 | -6/Garrison | Discovered new exit (range 10) 22837 | -6/Garrison | Expanded RIF knowledge: Threat Obfuscation 22867 | -6/Garrison | Garrison Relay disabled 22898 | -6/Garrison | Triggered checkpoint 22954 | -6/Garrison | Discovered new exit (range 10) 23140 | -6/Garrison | Triggered checkpoint 23155 | -6/Garrison | Garrison Relay disabled 23274 | -6/Garrison | Discovered new exit (range 10) 23319 | -6/Garrison | Entered Factory 23319 | -5/Factory | Evolved 2 slots: Propulsion x1, Utility x1 23619 | -5/Factory | First assault squad dispatched 23761 | -5/Factory | Identified exit to Garrison 23761 | -5/Factory | Entered Garrison 23761 | -5/Garrison | Accompanied by 1 ally 23855 | -5/Garrison | Triggered checkpoint 24195 | -5/Garrison | Spotted B-75 Beast 24227 | -5/Garrison | Destroyed B-75 Beast 24286 | -5/Garrison | Garrison Relay disabled 24399 | -5/Garrison | Triggered checkpoint 24434 | -5/Garrison | Triggered checkpoint 24598 | -5/Garrison | Found embedded Infiltrators 24736 | -5/Garrison | Discovered new exit (range 10) 24749 | -5/Garrison | Triggered checkpoint 24777 | -5/Garrison | Garrison Relay disabled 24925 | -5/Garrison | Phase Generator disabled 25055 | -5/Garrison | Triggered checkpoint 25099 | -5/Garrison | Triggered checkpoint 25126 | -5/Garrison | Garrison Relay disabled 25175 | -5/Garrison | Discovered new exit (range 14) 25329 | -5/Garrison | Discovered new exit (range 8) 25409 | -5/Garrison | Garrison Relay disabled 25456 | -5/Garrison | Expanded RIF knowledge: Patrol Navigation 25526 | -5/Garrison | Entered Factory 25526 | -4/Factory | Accompanied by 1 ally 25526 | -4/Factory | Evolved 2 slots: Utility x1, Weapon x1 25621 | -4/Factory | Lost 3 allies 26012 | -4/Factory | Garrison activated, responded to threat 26045 | -4/Factory | Lost 4 allies 26071 | -4/Factory | Destroyed 7 combat bots 26079 | -4/Factory | Lost 5 parts (1p2n1u1w) 26116 | -4/Factory | Spotted B-86 Titan 26152 | -4/Factory | Destroyed B-86 Titan 26176 | -4/Factory | Lost 4 parts (1n1u2w) 26179 | -4/Factory | Discovered new exit (range 21) 26859 | -4/Factory | Discovered new exit (range 18) 27276 | -4/Factory | First assault squad dispatched 27534 | -4/Factory | Assimilated ARC 7a with formatsys_deep 27624 | -4/Factory | Identified exit to Garrison 27624 | -4/Factory | Entered Garrison 27624 | -4/Garrison | Accompanied by 2 allies 27699 | -4/Garrison | Spotted B-86 Titan 27737 | -4/Garrison | Destroyed B-86 Titan 27740 | -4/Garrison | System corruption reached 10% 27841 | -4/Garrison | Lost 17 parts (1p4n3u9w) 27915 | -4/Garrison | Core integrity fell below 50% 28001 | -4/Garrison | Found Relay Coupler [Proto] 28003 | -4/Garrison | Found Relay Coupler [Proto] 28033 | -4/Garrison | Triggered checkpoint 28085 | -4/Garrison | Garrison Relay disabled 28180 | -4/Garrison | Warlord forces raided the area 28278 | -4/Garrison | Spotted B-86 Titan 28282 | -4/Garrison | Triggered checkpoint 28292 | -4/Garrison | Triggered checkpoint 28295 | -4/Garrison | Discovered new exit (range 13) 28297 | -4/Garrison | Core integrity fell below 20% 28302 | -4/Garrison | Entered Research 28302 | -3/Research | Evolved 2 slots: Propulsion x2 28317 | -3/Research | Lost 4 parts (2n2u) 28556 | -3/Research | Build established: Botlord-Mutant 28927 | -3/Research | System corruption reached 10% 28940 | -3/Research | Core integrity fell below 50% 28968 | -3/Research | Lost 9 parts (1p3n3u2w) 29094 | -3/Research | Core integrity fell below 20% 29111 | -3/Research | Spotted B-86 Titan 29137 | -3/Research | Lost 7 parts (5n1u1w) 29166 | -3/Research | Build established: Mutant 29263 | -3/Research | Destroyed by C-35 Carver with Carbide Saw Last Messages --------------- data lost. 29214_ Connecting with Terminal... 29216_ Acquired 10 matter. 29218_ System corrupted: Heat flow error (+188). 29219_ Slug penetrates Wall. 29234_ 5BYD&WA5I8 0NPLTEWUYH7UC|MQ 29245_ System corrupted: Slammed into wall. 29245_ Imp. System Shield destroyed. 29245_ System corrupted by crushing effect (+2). 29246_ Xenon Bombardment Thruster destroyed. 29247_ ALERT: Suspicious intruders detected, dispatching Cutter reinforcements to area. 29249_ 1UL=YS%OK Y JQP#4/OI1NEPLQWFGEC3 29251_ Penetrated by Slug. 29251_ Axe destroyed. 29251_ Relay Coupler [Swarmer] destroyed. 29251_ Q-thruster destroyed. 29255_ Lgt. Particle Reactor destroyed. 29258_ C-35 Carver destroyed. 29262_ Acquired Impulse Thruster Array. Map ----- +----------------------------------------------------+ | | | | | | | | | | | | | | | | | ???????????????????????????##############????????? | | ???????????????????????????# #????????? | | ???????????????????????????# !#????????? | | ???????????????????????????# ########## | | ???????????????????????????# + | | ???????????????????????????# # | | ???????????????????????????######"/###### | | ????????????????????????????????# | | ????????????????????????????????# ######## ##### | | ?????????????????????????######## #??????# #???# | | ?????????????????????????# # #??????# #??## | | ?????????????????????????# # #??????#/#??# | | ?????????????????????????# # #?????? ??#! | | ?????????????????????????# # #?????? ??# | | ???????????????????????#?# ! / +?????? ??# | | ???????????????????????# # " %#?????? #?# | | ?????????????????????### #######"! ##?????####?# | | ?????????????????????# ! @ #####*%! #??????????## | | ?????????????????????# ccs s H/= #???????????? | | ?????????????????????# " #???????????? | | ?????????????????????# #???????????? | | ?????????????????????# ##### #???????????? | | ?????????????????????## ##???#######??????? " | | ??????????????????????# #??????????????????? ] | | ??????????????????????# #??????????????????????? | | ??????????????????????# #??????????????????????? | | ??????????????????????# ???????????????????????? | | ?????????????????????? ???????????????????????? | | ????????????????????? ???????????????????????? | | ????????????????????? ???????????????????????? | | ????????????????????######???????????????????????? | | ?????????????????????????????????????????????????? | | ?????????????????????????????????????????????????? | | ?????????????????????????????????????????????????? | | ?????????????????????????????????????????????????? | | ?????????????????????????????????????????????????? | | ?????????????????????????????????????????????????? | | ?????????????????????????????????????????????????? | | ?????????????????????????????????????????????????? | | ?????????????????????????????????????????????????? | | ?????????????????????????????????????????????????? | | ?????????????????????????????????????????????????? | +----------------------------------------------------+ Best States ------------- Heat Dissipation 62 Energy Generation 23 Energy Capacity 340 Matter Stores 500 Matter Capacity 550 Sight Range 16 Terrain Scan Density 10 Armor Coverage 600 Resistance: KI 30 Weapon Shielding 33 Evasion (%) 65 Recoil Reduction 6 Offensive Hacking 10 Defensive Hacking 12 Relay Coupler Types 5 Relay Coupler Value 170 Item Schematics ----------------- Hcp. Storage Unit | -10/Materials | Hacked Imp. Flight Unit | -9/Materials | Scanalyzed Mni. Grenade Launcher | -9/Materials | Scanalyzed Seismic Detector | -9/Materials | Scanalyzed Huge Storage Unit | -8/Materials | Hacked Plasma Cutter | -8/Materials | Scanalyzed Med. Treads | -8/Materials | Scanalyzed Terrain Scan Processor | -8/Materials | Extracted Lgt. EM Pulse Cannon | -8/Materials | Extracted Imp. Heavy Siege Treads | -4/Factory | Downloaded Hyp. Railgun | -4/Factory | Scanalyzed Robot Schematics ------------------ None Fabricated ------------ Nothing Repaired ---------- Minigun | 4% | -8/Materials Prc. Assault Rifle | 63% | -8/Materials Med. Treads | 16% | -8/Materials Enh. Autogun | 18% | -8/Materials Adv. Treads | 23% | -7/Factory Lyr. Medium Armor Plating | 27% | -6/Factory Alien Tech Used ----------------- None Achievements -------------- None Challenges ------------ None Game ------ Seed ArcsightJammingMultirail Manual? 0 Play Time 04:14:48 Cumulative 246.1 hours Start 2025.07.25 @ 14:21:54 End 2025.08.05 @ 16:52:54 Sessions 19 Manual Loads 0 Difficulty Rogue Special Mode None Game No. 136 Rogue 133 Adventurer 3 Explorer 0 Win Type - Total 4 Types 4/0/0/0/0/0/0/0/0/0 Lore% 68 Gallery% 68 Achievement% 58 Wizard Run 0 Options --------- Layout 1 ASCII 0 Keyboard 1 Movement Vi Keybinds 0 Fullscreen 1 Font 28/SmallcapsGlow Map View 50x43 Zoom Use 0% Tactical HUD 1 Map Filters NONE Filters NONE Steam X RUN: 982d7a7a-eea2-43db-be32-38f3c85f5733